[Event "XX Gran Hotel Bali-A 2023"]
[Site "Benidorm"]
[Date "2023.12.06"]
[Round "7.3"]
[White "Vignesh B"]
[Black "Ilinca, Felix-Antonio"]
[Result "0-1"]
[ECO "B50"]
[WhiteElo "2140"]
[BlackElo "2395"]
[Annotator "RC"]
[PlyCount "78"]
[EventDate "2023.12.02"]
[EventType "swiss"]
[EventCountry "ESP"]
[SourceTitle "playchess.com"]
[Source "ChessBase"]
[SourceQuality "1"]
[TimeControl "5400+30"]

1. e4 {[%emt 0:06:18]} c5 {[%emt 0:00:34]} 2. Nf3 {[%emt 0:00:15]} d6 {[%emt 0:00:26]} 3. c3 {[%emt 0:01:10]} Nf6 {[%emt 0:01:00]} 4. Be2 {[%emt 0:01:16]} g6 {[%emt 0:03:18]} 5. O-O {[%emt 0:01:15]} Bg7 {[%emt 0:00:39]} 6. e5 {[%emt 0:00:25]} dxe5 {[%emt 0:02:18]} 7. Nxe5 {[%emt 0:01:02]} O-O {[%emt 0:00:38]} 8. Bf3 {[%emt 0:01:00]} Nfd7 {[%emt 0:07:03]} 9. Nc4 {[%emt 0:22:58]} Nc6 {[%emt 0:06:28]} 10. Bxc6 {[%emt 0:03:14]} bxc6 {[%emt 0:00:33]} 11. Qe2 {[%emt 0:10:04]} Nb6 {[%emt 0:05:22]} 12. d3 {[%emt 0:00:47]} Bf5 {[%emt 0:07:17]} 13. Rd1 {[%emt 0:00:29]} Qd7 {[%emt 0:06:12]} 14. Ne3 {[%emt 0:27:22]} Rad8 {[%emt 0:13:54]} 15. Nxf5 {[%emt 0:03:21]} Qxf5 {[%emt 0:00:32]} 16. Na3 {[%emt 0:00:27]} Rd7 {[%emt 0:03:11]} 17. Nc4 {[%emt 0:04:31]} Rfd8 {[%emt 0:04:27]} 18. Be3 {[%emt 0:00:21]} Rxd3 {[%emt 0:04:54]} 19. Rxd3 {[%emt 0:01:47]} Rxd3 {[%emt 0:02:45]} 20. Na5 {[%emt 0:02:03]} Qe4 {[%emt 0:04:17]} 21. Qf3 {[%emt 0:05:09]} Qa4 {[%emt 0:05:12]} 22. Nxc6 {[%emt 0:01:31]} Nd5 {[%emt 0:02:35]} 23. Nd8 {[%emt 0:04:42]} Nxe3 {[%emt 0:02:22]} 24. b3 {[%emt 0:00:11]} Qd7 {[%emt 0:01:44]} 25. Qxf7+ {[%emt 0:00:15]} Kh8 {[%emt 0:00:06]} 26. fxe3 {[%emt 0:00:02]} Qxd8 {[%emt 0:00:08]} 27. Rf1 {[%emt 0:00:04]} Rxe3 {[%emt 0:00:31]} 28. h3 {[%emt 0:01:06]} Rxc3 {[%emt 0:00:26]} 29. Qe6 {[%emt 0:00:07]} Bf6 {[%emt 0:00:31]} 30. Kh1 {[%emt 0:00:08]} Kg7 {[%emt 0:00:23]} 31. Qe1 {[%emt 0:00:19]} Rc2 {[%emt 0:00:42]} 32. a4 {[%emt 0:00:12]} Qd5 {[%emt 0:00:30]} 33. Qg3 {[%emt 0:00:06]} Rc3 {[%emt 0:00:08]} 34. Qg4 {[%emt 0:00:21]} h5 {[%emt 0:00:23]} 35. Qc8 {[%emt 0:00:06]} Rg3 {[%emt 0:00:30]} 36. Rg1 {[%emt 0:00:04]} h4 {[%emt 0:00:25]} 37. Kh2 {[%emt 0:00:05]} Be5 {[%emt 0:00:08]} 38. Kh1 {[%emt 0:00:05]} e6 {[%emt 0:00:05]} 39. Rf1 {[%emt 0:00:17]} Qxg2# {[%emt 0:00:06]} 0-1

[Event "XX Gran Hotel Bali-A 2023"]
[Site "Benidorm"]
[Date "2023.12.06"]
[Round "7.4"]
[White "Campora, Daniel H."]
[Black "Mingarro Carceller, Sergi"]
[Result "1/2-1/2"]
[ECO "B30"]
[WhiteElo "2341"]
[BlackElo "2253"]
[Annotator "RC"]
[PlyCount "21"]
[EventDate "2023.12.02"]
[EventType "swiss"]
[EventCountry "ESP"]
[SourceTitle "playchess.com"]
[Source "ChessBase"]
[SourceQuality "1"]
[TimeControl "5400+30"]

1. e4 {[%emt 0:00:02]} c5 {[%emt 0:01:44]} 2. Nf3 {[%emt 0:00:38]} Nc6 {[%emt 0:00:07]} 3. Bb5 {[%emt 0:00:11]} e6 {[%emt 0:00:10]} 4. O-O {[%emt 0:01:16]} Nge7 {[%emt 0:00:19]} 5. Re1 {[%emt 0:00:29]} Nd4 {[%emt 0:00:12]} 6. Bf1 {[%emt 0:02:02]} Nec6 {[%emt 0:02:23]} 7. d3 {[%emt 0:01:04]} Be7 {[%emt 0:05:57]} 8. Nbd2 {[%emt 0:00:54]} O-O {[%emt 0:02:30]} 9. c3 {[%emt 0:00:21]} Nxf3+ {[%emt 0:00:33]} 10. Nxf3 {[%emt 0:00:09]} d5 {[%emt 0:08:58]} 11. g3 {[%emt 0:21:37]} 1/2-1/2

[Event "XX Gran Hotel Bali-A 2023"]
[Site "Benidorm"]
[Date "2023.12.06"]
[Round "7.5"]
[White "Escartin Lacasa, Jose"]
[Black "Mitrabha, Guha"]
[Result "0-1"]
[ECO "A43"]
[WhiteElo "2272"]
[BlackElo "2516"]
[Annotator "RC"]
[PlyCount "68"]
[EventDate "2023.12.02"]
[EventType "swiss"]
[EventCountry "ESP"]
[SourceTitle "playchess.com"]
[Source "ChessBase"]
[SourceQuality "1"]
[TimeControl "5400+30"]

1. d4 {[%emt 0:00:03]} Nf6 {[%emt 0:12:17]} 2. Nf3 {[%emt 0:00:06]} c5 {[%emt 0:00:17]} 3. d5 {[%emt 0:00:06]} b5 {[%emt 0:00:14]} 4. Bg5 {[%emt 0:00:07]} g6 {[%emt 0:00:08]} 5. d6 {[%emt 0:01:10]} exd6 {[%emt 0:00:16]} 6. e3 {[%emt 0:02:53]} a6 {[%emt 0:02:00]} 7. a4 {[%emt 0:44:48]} Bb7 {[%emt 0:01:26]} 8. axb5 {[%emt 0:04:13]} axb5 {[%emt 0:00:28]} 9. Rxa8 {[%emt 0:00:04]} Bxa8 {[%emt 0:00:04]} 10. Bxb5 {[%emt 0:00:12]} h6 {[%emt 0:07:23]} 11. Bxf6 {[%emt 0:00:13]} Qxf6 {[%emt 0:00:02]} 12. Nc3 {[%emt 0:00:22]} Bg7 {[%emt 0:00:18]} 13. O-O {[%emt 0:01:39]} O-O {[%emt 0:00:03]} 14. Qe2 {[%emt 0:04:37]} d5 {[%emt 0:04:26]} 15. Rd1 {[%emt 0:01:17]} Qe6 {[%emt 0:00:07]} 16. Qd3 {[%emt 0:02:00]} Qb6 {[%emt 0:01:59]} 17. Ba4 {[%emt 0:03:02]} Qb4 {[%emt 0:05:24]} 18. Qb5 {[%emt 0:04:26]} Bxc3 {[%emt 0:01:39]} 19. bxc3 {[%emt 0:00:03]} Qxc3 {[%emt 0:00:05]} 20. Qb3 {[%emt 0:02:24]} Qf6 {[%emt 0:05:54]} 21. c3 {[%emt 0:01:41]} Nc6 {[%emt 0:01:28]} 22. c4 {[%emt 0:10:32]} Rb8 {[%emt 0:06:17]} 23. Qa3 {[%emt 0:00:06]} Nb4 {[%emt 0:00:14]} 24. Bxd7 {[%emt 0:03:20]} dxc4 {[%emt 0:00:50]} 25. Qa7 {[%emt 0:00:10]} Qb6 {[%emt 0:00:36]} 26. Qa1 {[%emt 0:03:15]} Bxf3 {[%emt 0:01:45]} 27. gxf3 {[%emt 0:00:01]} Nd3 {[%emt 0:00:14]} 28. Bh3 {[%emt 0:01:27]} Qb2 {[%emt 0:03:45]} 29. Qxb2 {[%emt 0:00:04]} Nxb2 {[%emt 0:00:08]} 30. Rc1 {[%emt 0:01:40]} Rb3 {[%emt 0:00:14]} 31. Bf1 {[%emt 0:00:57]} c3 {[%emt 0:00:06]} 32. f4 {[%emt 0:00:43]} c4 {[%emt 0:00:11]} 33. Rc2 {[%emt 0:01:54]} Nd3 {[%emt 0:00:08]} 34. f3 {[%emt 0:02:39]} Nb4 {[%emt 0:00:17]} 0-1

[Event "XX Gran Hotel Bali-A 2023"]
[Site "Benidorm"]
[Date "2023.12.06"]
[Round "7.7"]
[White "Domingo Nunez, Ruben"]
[Black "Garijo Perez, Hugo"]
[Result "1-0"]
[ECO "A88"]
[WhiteElo "2429"]
[BlackElo "2222"]
[Annotator "RC"]
[PlyCount "65"]
[EventDate "2023.12.02"]
[EventType "swiss"]
[EventCountry "ESP"]
[SourceTitle "playchess.com"]
[Source "ChessBase"]
[SourceQuality "1"]
[TimeControl "5400+30"]

1. c4 {[%emt 0:00:05]} f5 {[%emt 0:00:24]} 2. Nf3 {[%emt 0:00:09]} Nf6 {[%emt 0:00:14]} 3. g3 {[%emt 0:00:12]} g6 {[%emt 0:00:17]} 4. Bg2 {[%emt 0:00:04]} Bg7 {[%emt 0:00:05]} 5. Nc3 {[%emt 0:00:12]} d6 {[%emt 0:00:12]} 6. d4 {[%emt 0:00:05]} O-O {[%emt 0:00:18]} 7. d5 {[%emt 0:00:03]} c6 {[%emt 0:01:40]} 8. O-O {[%emt 0:00:14]} e5 {[%emt 0:00:02]} 9. e4 {[%emt 0:00:05]} Na6 {[%emt 0:18:09]} 10. exf5 {[%emt 0:03:17]} gxf5 {[%emt 0:02:43]} 11. Ng5 {[%emt 0:00:51]} e4 {[%emt 0:16:52]} 12. f3 {[%emt 0:17:37]} h6 {[%emt 0:04:40]} 13. Nh3 {[%emt 0:00:41]} Nc5 {[%emt 0:01:08]} 14. Be3 {[%emt 0:04:07]} exf3 {[%emt 0:06:53]} 15. Qxf3 {[%emt 0:04:08]} Nce4 {[%emt 0:01:47]} 16. Rad1 {[%emt 0:09:35]} c5 {[%emt 0:01:06]} 17. Nf4 {[%emt 0:04:16]} Ng5 {[%emt 0:10:11]} 18. Qe2 {[%emt 0:00:04]} Re8 {[%emt 0:00:11]} 19. Qd3 {[%emt 0:00:42]} Ng4 {[%emt 0:00:39]} 20. Bc1 {[%emt 0:02:27]} Bd4+ {[%emt 0:02:25]} 21. Kh1 {[%emt 0:00:08]} Nf2+ {[%emt 0:01:23]} 22. Rxf2 {[%emt 0:00:04]} Bxf2 {[%emt 0:00:05]} 23. h4 {[%emt 0:00:03]} Nf7 {[%emt 0:01:46]} 24. Ne6 {[%emt 0:01:38]} Rxe6 {[%emt 0:09:13]} 25. dxe6 {[%emt 0:00:22]} Bxe6 {[%emt 0:00:04]} 26. Qe2 {[%emt 0:21:40]} Bxg3 {[%emt 0:07:20]} 27. Qxe6 {[%emt 0:00:04]} Qxh4+ {[%emt 0:00:33]} 28. Kg1 {[%emt 0:00:04]} f4 {[%emt 0:02:25]} 29. Ne4 {[%emt 0:01:00]} Kg7 {[%emt 0:02:23]} 30. Nxd6 {[%emt 0:08:41]} Qh2+ {[%emt 0:08:51]} 31. Kf1 {[%emt 0:00:02]} Rf8 {[%emt 0:00:20]} 32. Nf5+ {[%emt 0:00:28]} Kh7 {[%emt 0:00:05]} 33. Qf6 {[%emt 0:00:33]} 1-0

[Event "XX Gran Hotel Bali-A 2023"]
[Site "Benidorm"]
[Date "2023.12.06"]
[Round "7.8"]
[White "Davtyan, David Arm."]
[Black "Iglesias Ferreira, Andres"]
[Result "0-1"]
[ECO "A28"]
[WhiteElo "2362"]
[BlackElo "2187"]
[Annotator "RC"]
[PlyCount "80"]
[EventDate "2023.12.02"]
[EventType "swiss"]
[EventCountry "ESP"]
[SourceTitle "playchess.com"]
[Source "ChessBase"]
[SourceQuality "1"]
[TimeControl "5400+30"]

1. c4 {[%emt 0:06:04]} Nf6 {[%emt 0:00:25]} 2. Nc3 {[%emt 0:00:12]} e5 {[%emt 0:00:47]} 3. Nf3 {[%emt 0:00:07]} Nc6 {[%emt 0:01:20]} 4. e4 {[%emt 0:00:06]} Bb4 {[%emt 0:00:28]} 5. d3 {[%emt 0:00:07]} d6 {[%emt 0:00:22]} 6. a3 {[%emt 0:00:15]} Bc5 {[%emt 0:00:10]} 7. b4 {[%emt 0:02:40]} Bb6 {[%emt 0:00:55]} 8. Be3 {[%emt 0:05:34]} Bg4 {[%emt 0:05:39]} 9. Bxb6 {[%emt 0:01:03]} axb6 {[%emt 0:00:09]} 10. Be2 {[%emt 0:00:03]} Bxf3 {[%emt 0:04:23]} 11. Bxf3 {[%emt 0:00:07]} Nd4 {[%emt 0:00:32]} 12. g3 {[%emt 0:00:05]} O-O {[%emt 0:08:20]} 13. Bg2 {[%emt 0:04:09]} Qd7 {[%emt 0:10:40]} 14. a4 {[%emt 0:02:09]} h5 {[%emt 0:04:40]} 15. O-O {[%emt 0:00:39]} h4 {[%emt 0:00:31]} 16. h3 {[%emt 0:04:09]} g6 {[%emt 0:05:36]} 17. Ra2 {[%emt 0:18:02]} Kg7 {[%emt 0:02:40]} 18. Qc1 {[%emt 0:05:57]} Rh8 {[%emt 0:04:29]} 19. f4 {[%emt 0:10:35]} hxg3 {[%emt 0:07:37]} 20. fxe5 {[%emt 0:02:59]} dxe5 {[%emt 0:00:18]} 21. Qg5 {[%emt 0:04:47]} Qe7 {[%emt 0:02:04]} 22. Qxg3 {[%emt 0:03:24]} Nh5 {[%emt 0:00:52]} 23. Qe3 {[%emt 0:00:01]} c6 {[%emt 0:04:04]} 24. Raf2 {[%emt 0:11:00]} f6 {[%emt 0:03:52]} 25. Rb1 {[%emt 0:00:30]} g5 {[%emt 0:00:50]} 26. Bf3 {[%emt 0:02:26]} Nf4 {[%emt 0:00:31]} 27. Bg4 {[%emt 0:00:06]} Rh4 {[%emt 0:01:05]} 28. a5 {[%emt 0:01:29]} Rah8 {[%emt 0:01:59]} 29. Rh2 {[%emt 0:01:03]} bxa5 {[%emt 0:06:39]} 30. bxa5 {[%emt 0:00:02]} Qa3 {[%emt 0:04:30]} 31. Rxb7+ {[%emt 0:00:08]} Kh6 {[%emt 0:00:36]} 32. Ne2 {[%emt 0:00:11]} Qa1+ {[%emt 0:07:51]} 33. Kf2 {[%emt 0:00:08]} Ndxe2 {[%emt 0:06:28]} 34. Bxe2 {[%emt 0:00:05]} Kg6 {[%emt 0:00:26]} 35. Qa7 {[%emt 0:00:45]} Nxh3+ {[%emt 0:00:44]} 36. Rxh3 {[%emt 0:01:58]} Rxh3 {[%emt 0:00:07]} 37. Rg7+ {[%emt 0:00:12]} Kh6 {[%emt 0:00:08]} 38. Rf7 {[%emt 0:00:01]} Rh2+ {[%emt 0:01:30]} 39. Kg3 {[%emt 0:01:15]} Qe1+ {[%emt 0:00:07]} 40. Kxh2 {[%emt 0:00:02]} Kg6+ {[%emt 0:00:02]} 0-1

[Event "XX Gran Hotel Bali-A 2023"]
[Site "Benidorm"]
[Date "2023.12.06"]
[Round "7.9"]
[White "Garcia Molina, Jose"]
[Black "Utsab Chatterjee"]
[Result "0-1"]
[ECO "E20"]
[WhiteElo "2212"]
[BlackElo "2302"]
[Annotator "RC"]
[PlyCount "116"]
[EventDate "2023.12.02"]
[EventType "swiss"]
[EventCountry "ESP"]
[SourceTitle "playchess.com"]
[Source "ChessBase"]
[SourceQuality "1"]
[TimeControl "5400+30"]

1. d4 {[%emt 0:00:02]} Nf6 {[%emt 0:06:09]} 2. c4 {[%emt 0:00:20]} e6 {[%emt 0:00:15]} 3. Nf3 {[%emt 0:01:02]} d5 {[%emt 0:00:12]} 4. g3 {[%emt 0:00:08]} Bb4+ {[%emt 0:00:23]} 5. Nc3 {[%emt 0:04:30]} O-O {[%emt 0:00:42]} 6. Bg2 {[%emt 0:00:47]} dxc4 {[%emt 0:00:19]} 7. O-O {[%emt 0:00:15]} Nc6 {[%emt 0:00:14]} 8. a3 {[%emt 0:00:30]} Bxc3 {[%emt 0:07:00]} 9. bxc3 {[%emt 0:00:03]} Rb8 {[%emt 0:10:10]} 10. Rb1 {[%emt 0:13:47]} a6 {[%emt 0:05:52]} 11. Bg5 {[%emt 0:01:48]} b5 {[%emt 0:03:19]} 12. e4 {[%emt 0:02:18]} Qe8 {[%emt 0:03:05]} 13. Bxf6 {[%emt 0:20:43]} gxf6 {[%emt 0:00:25]} 14. Qd2 {[%emt 0:00:15]} Qe7 {[%emt 0:06:00]} 15. Qh6 {[%emt 0:10:13]} Bd7 {[%emt 0:00:34]} 16. Rbd1 {[%emt 0:04:16]} Kh8 {[%emt 0:09:39]} 17. e5 {[%emt 0:08:13]} f5 {[%emt 0:12:31]} 18. Rfe1 {[%emt 0:08:23]} Rg8 {[%emt 0:02:43]} 19. h4 {[%emt 0:03:22]} Rg6 {[%emt 0:16:30]} 20. Qh5 {[%emt 0:01:26]} Qf8 {[%emt 0:00:02]} 21. Ng5 {[%emt 0:01:17]} Qg7 {[%emt 0:00:00]} 22. d5 {[%emt 0:00:20]} Nd8 {[%emt 0:02:12]} 23. dxe6 {[%emt 0:02:07]} fxe6 {[%emt 0:00:46]} 24. Rd2 {[%emt 0:01:09]} Be8 {[%emt 0:00:32]} 25. Qd1 {[%emt 0:06:37]} Qe7 {[%emt 0:01:44]} 26. Nh3 {[%emt 0:02:47]} Rg8 {[%emt 0:02:33]} 27. Nf4 {[%emt 0:00:18]} Nb7 {[%emt 0:00:11]} 28. Qf3 {[%emt 0:03:42]} Nc5 {[%emt 0:00:10]} 29. Qe3 {[%emt 0:00:02]} Nb3 {[%emt 0:02:26]} 30. Rdd1 {[%emt 0:00:06]} Bf7 {[%emt 0:00:08]} 31. Kh2 {[%emt 0:00:47]} Rbd8 {[%emt 0:00:27]} 32. Qf3 {[%emt 0:00:58]} Qxa3 {[%emt 0:01:26]} 33. Bh3 {[%emt 0:02:17]} Qe7 {[%emt 0:02:23]} 34. Qe2 {[%emt 0:01:35]} Nc5 {[%emt 0:00:23]} 35. Qe3 {[%emt 0:00:13]} Ne4 {[%emt 0:02:09]} 36. Rd4 {[%emt 0:00:21]} Rxd4 {[%emt 0:00:55]} 37. cxd4 {[%emt 0:00:14]} c5 {[%emt 0:00:47]} 38. Bg2 {[%emt 0:01:14]} cxd4 {[%emt 0:00:06]} 39. Qxd4 {[%emt 0:00:01]} Rd8 {[%emt 0:00:00]} 40. Qb6 {[%emt 0:00:19]} Nc5 {[%emt 0:00:14]} 41. Re2 {[%emt 0:00:20]} Rc8 {[%emt 0:00:33]} 42. Qa5 {[%emt 0:00:30]} Qc7 {[%emt 0:00:01]} 43. Qc3 {[%emt 0:00:12]} Na4 {[%emt 0:00:18]} 44. Qd4 {[%emt 0:00:15]} Rd8 {[%emt 0:00:15]} 45. Qe3 {[%emt 0:00:32]} b4 {[%emt 0:01:35]} 46. g4 {[%emt 0:00:18]} fxg4 {[%emt 0:00:16]} 47. Ra2 {[%emt 0:00:44]} Nc5 {[%emt 0:00:09]} 48. h5 {[%emt 0:00:27]} c3 {[%emt 0:00:57]} 49. Re2 {[%emt 0:00:28]} Qe7 {[%emt 0:01:57]} 50. Kg3 {[%emt 0:00:04]} a5 {[%emt 0:00:50]} 51. Bc6 {[%emt 0:00:29]} Nb3 {[%emt 0:00:26]} 52. Ng6+ {[%emt 0:01:13]} Bxg6 {[%emt 0:00:09]} 53. hxg6 {[%emt 0:00:08]} Nd4 {[%emt 0:00:11]} 54. Be4 {[%emt 0:00:15]} Nxe2+ {[%emt 0:00:27]} 55. Qxe2 {[%emt 0:00:01]} Qg5 {[%emt 0:00:38]} 56. Bd3 {[%emt 0:00:24]} hxg6 {[%emt 0:01:18]} 57. Qe4 {[%emt 0:00:07]} Qf5 {[%emt 0:00:11]} 58. Qh1+ {[%emt 0:00:09]} Qh5 {[%emt 0:00:06]} 0-1

[Event "XX Gran Hotel Bali-A 2023"]
[Site "Benidorm"]
[Date "2023.12.06"]
[Round "7.10"]
[White "Ambartsumian, Tyhran"]
[Black "Granero Roca, Antonio"]
[Result "1-0"]
[ECO "B23"]
[WhiteElo "2138"]
[BlackElo "2273"]
[Annotator "ChessBase"]
[PlyCount "87"]
[EventDate "2023.12.02"]
[EventType "swiss"]
[EventCountry "ESP"]
[SourceTitle "playchess.com"]
[Source "ChessBase"]
[SourceQuality "1"]
[TimeControl "5400+30"]

1. e4 {[%emt 0:00:02]} c5 {[%emt 0:03:24]} 2. Nc3 {[%emt 0:00:08]} d6 {[%emt 0:00:59]} 3. f4 {[%emt 0:00:08]} Nc6 {[%emt 0:00:26]} 4. Nf3 {[%emt 0:00:07]} g6 {[%emt 0:00:35]} 5. Bc4 {[%emt 0:00:07]} Bg7 {[%emt 0:00:28]} 6. O-O {[%emt 0:00:12]} Nf6 {[%emt 0:02:13]} 7. d3 {[%emt 0:00:30]} O-O {[%emt 0:00:32]} 8. Qe1 {[%emt 0:00:06]} Nd4 {[%emt 0:00:39]} 9. Nxd4 {[%emt 0:00:07]} cxd4 {[%emt 0:00:14]} 10. Nb5 {[%emt 0:00:01]} a6 {[%emt 0:05:15]} 11. Nxd4 {[%emt 0:00:24]} Qb6 {[%emt 0:00:48]} 12. c3 {[%emt 0:00:11]} e5 {[%emt 0:04:06]} 13. fxe5 {[%emt 0:00:06]} dxe5 {[%emt 0:00:11]} 14. Be3 {[%emt 0:00:05]} Ng4 {[%emt 0:12:05]} 15. Nf5 {[%emt 0:00:07]} Nxe3 {[%emt 0:00:59]} 16. Qxe3 {[%emt 0:00:07]} Qxb2 {[%emt 0:07:16]} 17. Nxg7 {[%emt 0:00:09]} Kxg7 {[%emt 0:00:12]} 18. d4 {[%emt 0:00:05]} Qb6 {[%emt 0:09:09]} 19. Bd5 {[%emt 0:18:25]} Rb8 {[%emt 0:05:53]} 20. Rab1 {[%emt 0:03:39]} Qc7 {[%emt 0:01:18]} 21. c4 {[%emt 0:04:24]} Be6 {[%emt 0:06:18]} 22. Rb2 {[%emt 0:13:31]} Bxd5 {[%emt 0:03:36]} 23. cxd5 {[%emt 0:00:31]} Rbe8 {[%emt 0:00:46]} 24. Rbf2 {[%emt 0:19:43]} exd4 {[%emt 0:03:43]} 25. Qxd4+ {[%emt 0:01:27]} Qe5 {[%emt 0:00:08]} 26. Qb6 {[%emt 0:00:11]} Re7 {[%emt 0:01:40]} 27. Rf4 {[%emt 0:39:27]} Rc8 {[%emt 0:02:48]} 28. Qf2 {[%emt 0:00:00]} Rf8 {[%emt 0:02:01]} 29. Kh1 {[%emt 0:00:00]} Rc7 {[%emt 0:01:24]} 30. h4 {[%emt 0:00:00]} h6 {[%emt 0:01:19]} 31. Qg3 {[%emt 0:00:00]} Kg8 {[%emt 0:01:05]} 32. Qg4 {[%emt 0:00:00]} h5 {[%emt 0:03:28]} 33. Qf3 {[%emt 0:00:00]} b5 {[%emt 0:00:23]} 34. Rf6 {[%emt 0:00:00]} Kg7 {[%emt 0:07:33]} 35. Rxa6 {[%emt 0:00:00]} Rc4 {[%emt 0:03:24]} 36. Re6 {[%emt 0:00:00]} Qd4 {[%emt 0:02:55]} 37. Re7 {[%emt 0:00:00]} Rcc8 {[%emt 0:04:39]} 38. Rxf7+ {[%emt 0:00:00]} Rxf7 {[%emt 0:00:09]} 39. Qxf7+ {[%emt 0:00:00]} Kh6 {[%emt 0:05:59]} 40. Qf4+ {[%emt 0:00:00]} Kg7 {[%emt 0:00:00]} 41. d6 {[%emt 0:00:00]} b4 {[%emt 0:00:00]} 42. e5 {[%emt 0:00:00]} Qxf4 {[%emt 0:00:00]} 43. Rxf4 {[%emt 0:00:00]} Re8 {[%emt 0:00:00]} 44. d7 {[%emt 0:00:00]} 1-0

[Event "XX Gran Hotel Bali-A 2023"]
[Site "Benidorm"]
[Date "2023.12.06"]
[Round "7.11"]
[White "Trigo Urquijo, Sergio"]
[Black "Gaurav Rajesh Zagade"]
[Result "0-1"]
[ECO "E26"]
[WhiteElo "2400"]
[BlackElo "2099"]
[Annotator "RC"]
[PlyCount "120"]
[EventDate "2023.12.02"]
[EventType "swiss"]
[EventCountry "ESP"]
[SourceTitle "playchess.com"]
[Source "ChessBase"]
[SourceQuality "1"]
[TimeControl "5400+30"]

1. d4 {[%emt 0:00:03]} Nf6 {[%emt 0:00:10]} 2. c4 {[%emt 0:00:13]} e6 {[%emt 0:00:08]} 3. Nc3 {[%emt 0:00:28]} Bb4 {[%emt 0:00:08]} 4. a3 {[%emt 0:02:25]} Bxc3+ {[%emt 0:00:11]} 5. bxc3 {[%emt 0:00:07]} c5 {[%emt 0:00:44]} 6. e3 {[%emt 0:03:31]} b6 {[%emt 0:02:37]} 7. Bd3 {[%emt 0:00:55]} Bb7 {[%emt 0:00:44]} 8. f3 {[%emt 0:00:56]} Nc6 {[%emt 0:00:57]} 9. Ne2 {[%emt 0:00:42]} d6 {[%emt 0:01:12]} 10. O-O {[%emt 0:02:55]} Qe7 {[%emt 0:01:16]} 11. e4 {[%emt 0:03:00]} Na5 {[%emt 0:02:22]} 12. d5 {[%emt 0:04:55]} Ba6 {[%emt 0:05:26]} 13. Ng3 {[%emt 0:01:20]} O-O-O {[%emt 0:02:23]} 14. Qe2 {[%emt 0:01:51]} Nd7 {[%emt 0:06:55]} 15. f4 {[%emt 0:09:50]} h5 {[%emt 0:12:19]} 16. e5 {[%emt 0:10:02]} dxe5 {[%emt 0:02:30]} 17. fxe5 {[%emt 0:01:46]} exd5 {[%emt 0:01:13]} 18. Nf5 {[%emt 0:07:45]} Qxe5 {[%emt 0:02:47]} 19. Qf3 {[%emt 0:01:37]} Qxc3 {[%emt 0:07:34]} 20. Bf4 {[%emt 0:18:03]} Ne5 {[%emt 0:07:28]} 21. Bxe5 {[%emt 0:03:51]} Qxe5 {[%emt 0:00:06]} 22. Rae1 {[%emt 0:00:09]} Qf6 {[%emt 0:07:50]} 23. cxd5 {[%emt 0:03:39]} Bxd3 {[%emt 0:00:44]} 24. Qxd3 {[%emt 0:00:06]} Rhe8 {[%emt 0:03:43]} 25. Ne7+ {[%emt 0:06:21]} Qxe7 {[%emt 0:01:12]} 26. Rxe7 {[%emt 0:00:08]} Rxe7 {[%emt 0:00:03]} 27. Qh3+ {[%emt 0:01:14]} Kb7 {[%emt 0:00:38]} 28. Qxh5 {[%emt 0:00:16]} f6 {[%emt 0:00:34]} 29. Rd1 {[%emt 0:03:28]} Rd6 {[%emt 0:01:29]} 30. Qf3 {[%emt 0:00:39]} Nc4 {[%emt 0:01:14]} 31. Qf4 {[%emt 0:01:08]} Ne5 {[%emt 0:00:13]} 32. a4 {[%emt 0:02:14]} c4 {[%emt 0:01:27]} 33. Qe4 {[%emt 0:11:23]} Rc7 {[%emt 0:00:42]} 34. h3 {[%emt 0:00:00]} Rc5 {[%emt 0:02:00]} 35. Qh7 {[%emt 0:00:00]} Rd7 {[%emt 0:01:01]} 36. d6 {[%emt 0:00:00]} Rc6 {[%emt 0:00:45]} 37. Qe4 {[%emt 0:00:00]} Nd3 {[%emt 0:02:32]} 38. a5 {[%emt 0:00:00]} b5 {[%emt 0:03:38]} 39. a6+ {[%emt 0:00:00]} Kb6 {[%emt 0:00:07]} 40. Qe3+ {[%emt 0:00:00]} Nc5 {[%emt 0:00:17]} 41. Qe8 {[%emt 0:00:03]} Kxa6 {[%emt 0:03:11]} 42. Qb8 {[%emt 0:01:44]} Na4 {[%emt 0:03:19]} 43. Rb1 {[%emt 0:02:25]} Rb7 {[%emt 0:00:29]} 44. Qd8 {[%emt 0:00:06]} c3 {[%emt 0:00:18]} 45. d7 {[%emt 0:00:47]} Rd6 {[%emt 0:01:12]} 46. Qc8 {[%emt 0:00:50]} Rdxd7 {[%emt 0:00:10]} 47. Qc6+ {[%emt 0:00:19]} Ka5 {[%emt 0:00:10]} 48. Rc1 {[%emt 0:00:30]} Rbc7 {[%emt 0:00:32]} 49. Qe4 {[%emt 0:00:20]} Rc4 {[%emt 0:01:13]} 50. Qe6 {[%emt 0:00:06]} Rdc7 {[%emt 0:00:13]} 51. Qd5 {[%emt 0:00:26]} R4c5 {[%emt 0:00:13]} 52. Qd1 {[%emt 0:00:48]} c2 {[%emt 0:00:28]} 53. Qd2+ {[%emt 0:00:27]} b4 {[%emt 0:00:05]} 54. Kh2 {[%emt 0:00:19]} Kb5 {[%emt 0:01:17]} 55. Qd3+ {[%emt 0:00:09]} Kb6 {[%emt 0:00:13]} 56. Qd6+ {[%emt 0:00:19]} Kb7 {[%emt 0:00:18]} 57. Qd3 {[%emt 0:00:32]} a5 {[%emt 0:00:40]} 58. Qf3+ {[%emt 0:00:14]} Ka7 {[%emt 0:00:14]} 59. Qe3 {[%emt 0:00:20]} Nb6 {[%emt 0:00:09]} 60. Qb3 {[%emt 0:01:37]} Rc4 {[%emt 0:00:33]} 0-1